fUSD/lending_fUSD_20250503
["ID","MTS","AMOUNT","RATE_DAILY","PERIOD"]
[359711759,1746271847250,-878.0,0.00019877,2]
[359711760,1746271847259,-286.28925081,0.00019886,2]
[359711761,1746271847269,-189.10768055,0.00019886,2]
[359711762,1746271847278,-286.28925081,0.00019888,2]
[359711763,1746271847287,-189.10768054,0.0001989,2]
[359711764,1746271847296,-500.0,0.0001989,2]
[359711765,1746271847305,-286.28925081,0.00019891,2]
[359711766,1746271847315,-12500.0,0.00019891,2]
[359711767,1746271847324,-286.28925081,0.00019893,2]
[359711768,1746271847333,-189.10768054,0.00019893,2]
[359711769,1746271847342,-286.28925081,0.00019895,2]
[359711770,1746271847351,-189.10768054,0.00019897,2]
[359711771,1746271847360,-286.28925081,0.00019898,2]
[359711772,1746271847369,-500.0,0.00019899,2]
[359711773,1746271847378,-247.26148114,0.00019899,2]
[359711775,1746271847387,-226.32104667,0.00019899,2]
[359711777,1746271847396,-173.51207526,0.00019899,2]
[359711779,1746271847405,-500.0,0.00019899,2]
[359711781,1746271847415,-500.0,0.00019899,2]
[359711782,1746271847424,-500.0,0.00019899,2]
[359711783,1746271847434,-500.0,0.00019899,2]
[359711784,1746271847443,-293.43275605,0.00019899,2]
[359711785,1746271847453,-1290.95436738,0.000199,2]
[359711786,1746271847462,-2069.37,0.000199,2]
[359711787,1746271847472,-12500.0,0.000199,2]
[359711788,1746271847482,-78000.73128742,0.000199,2]
[359711789,1746271847492,-25046.00702548,0.000199,2]
[359711790,1746271847501,-4750.45013189,0.000199,3]
[359711791,1746271847510,-3748.09740549,0.000199,2]
[359711792,1746271847520,-179.26896799,0.000199,2]
[359711793,1746271847529,-286.28925081,0.000199,2]
[359711794,1746271847539,-300.15915061,0.000199,2]
[359711795,1746271847548,-216.95569402,0.000199,2]
[359711796,1746271847557,-372.82159589,0.000199,2]
[359711797,1746271847567,-378.24515998,0.000199,2]
[359711798,1746271847577,-189.10768054,0.000199,2]
[359711799,1746271847586,-182.5163147,0.000199,2]
[359711800,1746271847658,-3125.16306775,0.000199,2]
[359711801,1746271847667,-5685.1335544,0.000199,2]
[359711802,1746271847676,-1950.7906524,0.000199,2]
[359711803,1746271847685,-210.11,0.00019918,2]
[359711804,1746271847695,-2301.811,0.00019918,2]
[359711805,1746271847705,-300.15915061,0.00019969,2]
[359711806,1746271847715,-514.0,0.0001997,2]
[359711807,1746271847724,-500.0,0.00019973,2]
[359711808,1746271847733,-527.4996018,0.00019973,2]
[359711809,1746271847743,-170.0108309,0.00019973,2]
[359711810,1746271847751,-500.0,0.00019973,2]
[359711811,1746271847761,-501.29466975,0.00019973,2]
[359711812,1746271847770,-500.0,0.00019973,2]
[359711813,1746271847779,-501.02155493,0.00019973,2]
[359711814,1746271847789,-500.0,0.00019973,2]
[359711815,1746271847798,-500.0,0.00019973,2]
[359711816,1746271847808,-291.86484364,0.00019973,2]
[359711817,1746271847818,-500.0,0.00019973,2]
[359711818,1746271847828,-500.0,0.00019973,2]
[359711819,1746271847838,-152.63342926,0.00019973,2]
[359711820,1746271847847,-504.43483647,0.00019973,2]
[359711821,1746271847857,-500.0,0.00019973,2]
[359711822,1746271847867,-128080.80077955,0.0001998,2]
[359711823,1746271847876,-773.85,0.00019985,2]
[359711824,1746271847886,-500.0,0.00019985,2]
[359711825,1746271847895,-500.0,0.00019985,2]
[359711826,1746271847904,-500.0,0.00019985,2]
[359711827,1746271847914,-500.0,0.00019985,2]
[359711828,1746271847923,-500.0,0.00019985,2]
[359711829,1746271847932,-449.73983441,0.00019985,2]
[359711830,1746271847942,-500.0,0.00019985,2]
[359711831,1746271847951,-500.0,0.00019985,2]
[359711832,1746271847960,-40665.28617599,0.00019985,2]
[359711833,1746271847970,-1352.0,0.00019986,2]
[359711834,1746271847979,-3865.451122,0.00019986,2]
[359711835,1746271847989,-55233.5638012,0.00019986,2]
[359711836,1746271847998,-825.600296,0.00019986,2]
[359711837,1746271848007,-500.0,0.00019998,2]
[359711838,1746271848019,-500.0,0.00019999,2]
[359711839,1746271848028,-300.0,0.00019999,2]
[359711840,1746271848038,-500.0,0.00019999,2]
[359711841,1746271848047,-366.20032378,0.00019999,2]
[359711842,1746271848058,-300.0,0.00019999,2]
[359711843,1746271848068,-300.0,0.00019999,2]
[359711844,1746271848078,-773.85,0.00019999,2]
[359711845,1746271848087,-773.85,0.00019999,2]
[359711846,1746271848097,-773.85,0.00019999,2]
[359711847,1746271848106,-773.85,0.00019999,2]
[359711848,1746271848117,-773.85,0.00019999,2]
[359711849,1746271848126,-773.85,0.00019999,2]
[359711850,1746271848135,-773.85,0.00019999,2]
[359711851,1746271848144,-773.85,0.00019999,2]
[359711852,1746271848154,-773.85,0.00019999,2]
[359711853,1746271848164,-773.85,0.00019999,2]
[359711854,1746271848173,-773.85,0.00019999,2]
[359711855,1746271848183,-773.85,0.00019999,2]
[359711856,1746271848193,-773.85,0.00019999,2]
[359711857,1746271848202,-773.85,0.00019999,2]
[359711858,1746271848211,-773.85,0.00019999,2]
[359711859,1746271848221,-773.85,0.00019999,2]
[359711860,1746271848231,-773.85,0.00019999,2]
[359711861,1746271848241,-773.85,0.00019999,2]
[359711862,1746271848250,-773.85,0.00019999,2]
[359711863,1746271848259,-773.85,0.00019999,2]
[359711864,1746271848269,-773.85,0.00019999,2]
[359711865,1746271848279,-773.94550993,0.00019999,2]
[359711866,1746271848288,-500.0,0.00019999,2]
[359711867,1746271848298,-500.0,0.00019999,2]
[359711868,1746271848307,-500.0,0.00019999,2]
[359711869,1746271848316,-628.07395844,0.00019999,2]
[359711870,1746271848326,-3023.60712475,0.00019999,2]
[359711871,1746271848336,-12659.24018753,0.00019999,2]
[359711872,1746271848345,-500.0,0.00019999,2]
[359711873,1746271848355,-463.24295261,0.00019999,2]
[359711874,1746271848364,-500.0,0.00019999,2]
[359711875,1746271848374,-150.0,0.00019999,2]
[359711876,1746271848384,-500.0,0.00019999,2]
[359711877,1746271848395,-500.0,0.00019999,2]
[359711878,1746271848404,-500.0,0.00019999,2]
[359711879,1746271848413,-500.0,0.00019999,2]
[359711880,1746271848422,-500.0,0.00019999,2]
[359711881,1746271848431,-353.05,0.00019999,2]
[359711882,1746271848441,-150.0,0.00019999,2]
[359711883,1746271848450,-500.0,0.00019999,2]
[359711884,1746271848460,-150.0,0.00019999,2]
[359711885,1746271848470,-500.0,0.00019999,2]
[359711886,1746271848479,-66823.38330018,0.00019999,2]
[359711887,1746271848489,-150.0,0.00019999,2]
[359711888,1746271848497,-150.0,0.00019999,2]
[359711889,1746271848506,-500.0,0.00019999,2]
[359711890,1746271848516,-500.0,0.00019999,2]
[359711891,1746271848525,-150.0,0.00019999,2]
[359711892,1746271848534,-150.0,0.00019999,2]
[359711893,1746271848543,-309.93405461,0.0002,2]
[359711894,1746271848552,-1763587.10411568,0.0002,2]
[359711895,1746271848562,-518117.03245724,0.0002,2]
[359711896,1746271848571,-1780.05270486,0.0002,2]
[359711897,1746271848580,-30000.0,0.0002,2]
[359711898,1746271848590,-254.68016569,0.0002,2]
[359711899,1746271848599,-180.7290065,0.0002,2]
[359711900,1746271848608,-223.18277489,0.0002,2]
[359711901,1746271848618,-150.0,0.0002,2]
[359711902,1746271848627,-876.69242175,0.0002,2]
[359711903,1746271848636,-209.0,0.0002,2]
[359711904,1746271848646,-209.0,0.0002,2]
[359711905,1746271848655,-240.0,0.0002,2]
[359711906,1746271848665,-1165038.22625127,0.0002,2]
[359711907,1746271849859,-450.0,0.00019738,2]
[359711908,1746271849868,-211.93541684,0.00019738,2]
[359711909,1746271864856,242.41374597,0.00019,2]
[359711912,1746271913049,551.0,0.00032,90]
[359711943,1746272301418,278.13,0.00016979,2]
[359711944,1746272301570,278.13,0.00019243,2]
[359711947,1746272398478,250.0,0.00018889,7]
[359711949,1746272460700,801.07657424,0.00032,120]
[359711950,1746272460868,250.0,0.00017,2]
[359711951,1746272462326,300.0,0.00019,2]
[359711954,1746272573870,204.17,0.00032877,60]
[359711956,1746272638678,250.0,0.00019431,2]
[359711960,1746272830063,1000.0,0.00018776,2]
[359711976,1746272930250,8170.3109894,0.00019,2]
[359712114,1746273032542,-300.0,0.00019635,2]
[359712115,1746273032552,-8.84060142,0.00019635,2]
[359712201,1746273038633,-1191.15939858,0.00019635,2]
[359712202,1746273038642,-522.516,0.00019635,2]
[359712203,1746273038651,-337.3714,0.00019636,2]
[359712204,1746273038661,-2500.0,0.00019636,2]
[359712205,1746273038669,-2459.8101,0.00019636,2]
[359712206,1746273038679,-8976.99741893,0.00019636,2]
[359712207,1746273038688,-179.26896799,0.00019636,2]
[359712208,1746273038697,-200.0,0.00019636,2]
[359712209,1746273038706,-57943.09779859,0.00019637,2]
[359712210,1746273038715,-6325.8792,0.00019637,2]
[359712211,1746273038724,-507.2784,0.00019637,2]
[359712212,1746273038733,-1768.4534,0.00019637,2]
[359712213,1746273038742,-12199.3726,0.00019637,2]
[359712214,1746273038751,-500.0,0.00019637,2]
[359712215,1746273038761,-151.0,0.00019637,2]
[359712216,1746273038770,-3514.45605432,0.00019637,2]
[359712217,1746273038779,-200.0,0.00019637,2]
[359712219,1746273038788,-8976.99741885,0.00019665,2]
[359712221,1746273038798,-3514.45605424,0.00019666,2]
[359712222,1746273038807,-8976.99741885,0.00019695,2]
[359712223,1746273038816,-3514.45605424,0.00019695,2]
[359712224,1746273038825,-8976.99741885,0.00019724,2]
[359712225,1746273038835,-3514.45605424,0.00019725,2]
[359712226,1746273038844,-151.0,0.00019725,2]
[359712227,1746273038853,-668.65185757,0.00019725,2]
[359712228,1746273038862,-207.4,0.00019725,2]
[359712229,1746273038871,-4261.55,0.00019726,2]
[359712230,1746273038880,-500.0,0.00019733,2]
[359712231,1746273038889,-500.0,0.00019733,2]
[359712232,1746273038899,-500.0,0.00019733,2]
[359712233,1746273038908,-500.0,0.00019733,2]
[359712234,1746273038917,-500.0,0.00019733,2]
[359712235,1746273038926,-500.0,0.00019733,2]
[359712236,1746273038936,-500.0,0.00019733,2]
[359712237,1746273038945,-500.0,0.00019733,2]
[359712238,1746273038954,-500.0,0.00019733,2]
[359712239,1746273038963,-500.0,0.00019733,2]
[359712240,1746273038972,-500.0,0.00019733,2]
[359712241,1746273038981,-500.0,0.00019733,2]
[359712242,1746273038991,-500.0,0.00019733,2]
[359712243,1746273039000,-500.0,0.00019733,2]
[359712244,1746273039010,-500.0,0.00019733,2]
[359712245,1746273039019,-500.0,0.00019733,2]
[359712246,1746273039029,-500.0,0.00019733,2]
[359712247,1746273039038,-500.0,0.00019733,2]
[359712248,1746273039047,-500.0,0.00019733,2]
[359712249,1746273039056,-500.0,0.00019733,2]
[359712250,1746273039065,-500.0,0.00019733,2]
[359712251,1746273039075,-500.0,0.00019733,2]
[359712252,1746273039084,-500.0,0.00019733,2]
[359712253,1746273039093,-500.0,0.00019733,2]
[359712254,1746273039102,-393.10170849,0.00019733,2]
[359712255,1746273039111,-500.0,0.00019733,2]
[359712256,1746273039121,-500.0,0.00019733,2]
[359712257,1746273039132,-500.0,0.00019733,2]
[359712258,1746273039142,-500.0,0.00019733,2]
[359712259,1746273039152,-500.0,0.00019733,2]
[359712260,1746273039161,-500.0,0.00019733,2]
[359712261,1746273039171,-500.0,0.00019733,2]
[359712262,1746273039180,-500.0,0.00019733,2]
[359712263,1746273039190,-500.0,0.00019733,2]
[359712264,1746273039199,-500.0,0.00019733,2]
[359712265,1746273039209,-500.0,0.00019733,2]
[359712266,1746273039218,-500.0,0.00019733,2]
[359712267,1746273039227,-500.0,0.00019733,2]
[359712268,1746273039237,-500.0,0.00019733,2]
[359712269,1746273039246,-500.0,0.00019733,2]
[359712270,1746273039255,-450.0,0.00019735,2]
[359712271,1746273039264,-450.0,0.00019735,2]
[359712272,1746273039273,-450.0,0.00019735,2]
[359712273,1746273039282,-450.0,0.00019735,2]
[359712274,1746273039292,-450.0,0.00019735,2]
[359712275,1746273039301,-450.0,0.00019735,2]
[359712276,1746273039311,-450.0,0.00019735,2]
[359712277,1746273039320,-416.91615072,0.00019736,2]
[359712278,1746273039330,-450.0,0.00019736,2]
[359712279,1746273039339,-450.0,0.00019736,2]
[359712280,1746273039348,-642.37,0.00019736,2]
[359712281,1746273039357,-450.0,0.00019736,2]
[359712282,1746273039367,-450.0,0.00019736,2]
[359712283,1746273039376,-450.0,0.00019736,2]
[359712284,1746273039385,-450.0,0.00019736,2]
[359712285,1746273039398,-450.0,0.00019736,2]
[359712286,1746273039407,-472.82180918,0.00019736,2]
[359712287,1746273039417,-450.0,0.00019736,2]
[359712288,1746273039426,-450.0,0.00019736,2]
[359712289,1746273039436,-450.0,0.00019736,2]
[359712290,1746273039445,-593.5834704,0.00019736,2]
[359712291,1746273039455,-1006.86,0.00019736,2]
[359712292,1746273039464,-450.0,0.00019736,2]
[359712293,1746273039480,-450.0,0.00019736,2]
[359712294,1746273039489,-450.0,0.00019736,2]
[359712295,1746273039499,-450.0,0.00019736,2]
[359712296,1746273039507,-450.0,0.00019736,2]
[359712297,1746273039516,-450.0,0.00019736,2]
[359712298,1746273039525,-450.0,0.00019736,2]
[359712299,1746273039534,-450.0,0.00019736,2]
[359712300,1746273039543,-450.0,0.00019736,2]
[359712301,1746273039552,-450.0,0.00019736,2]
[359712302,1746273039562,-450.0,0.00019736,2]
[359712303,1746273039571,-450.0,0.00019736,2]
[359712304,1746273039580,-450.0,0.00019736,2]
[359712305,1746273039589,-450.0,0.00019736,2]
[359712306,1746273039598,-450.0,0.00019736,2]
[359712307,1746273039607,-450.0,0.00019736,2]
[359712308,1746273039616,-450.0,0.00019736,2]
[359712309,1746273039625,-450.0,0.00019736,2]
[359712310,1746273039634,-450.0,0.00019736,2]
[359712311,1746273039643,-450.0,0.00019736,2]
[359712312,1746273039652,-450.0,0.00019736,2]
[359712313,1746273039661,-450.0,0.00019736,2]
[359712314,1746273039671,-450.0,0.00019736,2]
[359712315,1746273039680,-211.11976776,0.00019736,2]
[359712316,1746273039689,-450.0,0.00019736,2]
[359712317,1746273039698,-450.0,0.00019736,2]
[359712318,1746273039707,-450.0,0.00019736,2]
[359712319,1746273039716,-450.0,0.00019736,2]
[359712320,1746273039725,-450.0,0.00019736,2]
[359712321,1746273039734,-450.0,0.00019736,2]
[359712322,1746273039743,-450.0,0.00019736,2]
[359712323,1746273039753,-450.0,0.00019736,2]
[359712324,1746273039762,-450.0,0.00019736,2]
[359712325,1746273039772,-450.0,0.00019736,2]
[359712326,1746273039781,-450.0,0.00019736,2]
[359712327,1746273039790,-450.0,0.00019736,2]
[359712328,1746273039799,-424.0259524,0.00019736,2]
[359712329,1746273039808,-450.0,0.00019736,2]
[359712331,1746273039818,-450.0,0.00019736,2]
[359712332,1746273039827,-450.0,0.00019736,2]
[359712333,1746273039836,-450.0,0.00019736,2]
[359712334,1746273039845,-450.0,0.00019736,2]
[359712335,1746273039855,-450.0,0.00019736,2]
[359712336,1746273039864,-450.0,0.00019736,2]
[359712337,1746273039873,-450.0,0.00019736,2]
[359712338,1746273039883,-450.0,0.00019736,2]
[359712339,1746273039892,-450.0,0.00019736,2]
[359712340,1746273039901,-177.1795869,0.00019736,2]
[359712341,1746273039910,-796.75,0.00019736,2]
[359712342,1746273039919,-450.0,0.00019736,2]
[359712343,1746273039928,-450.0,0.00019736,2]
[359712344,1746273039938,-744.43454,0.00019736,2]
[359712345,1746273039947,-450.0,0.00019736,2]
[359712346,1746273039955,-795.83,0.00019736,2]
[359712347,1746273039965,-450.0,0.00019736,2]
[359712348,1746273039974,-276.44485914,0.00019736,2]
[359712349,1746273039983,-450.0,0.00019736,2]
[359712350,1746273039993,-450.0,0.00019736,2]
[359712351,1746273040002,-450.0,0.00019736,2]
[359712352,1746273040011,-450.0,0.00019736,2]
[359712353,1746273040020,-450.0,0.00019736,2]
[359712354,1746273040029,-450.0,0.00019736,2]
[359712355,1746273040039,-250.0,0.00019736,2]
[359712356,1746273040048,-450.0,0.00019736,2]
[359712357,1746273040058,-450.0,0.00019736,2]
[359712358,1746273040067,-613.443482,0.00019736,2]
[359712359,1746273040077,-451.64,0.00019736,2]
[359712360,1746273040086,-450.0,0.00019736,2]
[359712361,1746273040095,-450.0,0.00019736,2]
[359712362,1746273040104,-450.0,0.00019736,2]
[359712363,1746273040114,-450.0,0.00019736,2]
[359712364,1746273040124,-450.0,0.00019736,2]
[359712365,1746273040134,-450.0,0.00019736,2]
[359712366,1746273040143,-604.99,0.00019736,2]
[359712367,1746273040152,-450.0,0.00019736,2]
[359712368,1746273040162,-450.0,0.00019736,2]
[359712369,1746273040172,-450.0,0.00019736,2]
[359712370,1746273040182,-450.0,0.00019736,2]
[359712371,1746273040191,-450.0,0.00019736,2]
[359712372,1746273040200,-472.29,0.00019736,2]
[359712373,1746273040209,-450.0,0.00019736,2]
[359712374,1746273040218,-450.0,0.00019736,2]
[359712375,1746273040227,-450.0,0.00019736,2]
[359712376,1746273040236,-826.17,0.00019736,2]
[359712377,1746273040246,-450.0,0.00019736,2]
[359712378,1746273040255,-450.0,0.00019736,2]
[359712379,1746273040265,-450.0,0.00019736,2]
[359712380,1746273040274,-556.71,0.00019736,2]
[359712381,1746273040283,-2468.93,0.00019736,2]
[359712382,1746273040292,-369.86021687,0.00019736,2]
[359712383,1746273040302,-450.0,0.00019736,2]
[359712384,1746273040311,-450.0,0.00019736,2]
[359712385,1746273040320,-450.0,0.00019736,2]
[359712386,1746273040329,-450.0,0.00019736,2]
[359712387,1746273040339,-450.0,0.00019736,2]
[359712388,1746273040348,-975.07,0.00019736,2]
[359712391,1746273040357,-450.0,0.00019736,2]
[359712392,1746273040367,-450.0,0.00019736,2]
[359712393,1746273040376,-450.0,0.00019736,2]
[359712394,1746273040385,-1077.31,0.00019736,2]
[359712395,1746273040398,-514.71,0.00019736,2]
[359712396,1746273040407,-450.0,0.00019736,2]
[359712397,1746273040416,-450.0,0.00019736,2]
[359712398,1746273040426,-450.0,0.00019736,2]
[359712399,1746273040435,-450.0,0.00019736,2]
[359712400,1746273040443,-1235.11,0.00019736,2]
[359712401,1746273040453,-450.0,0.00019736,2]
[359712402,1746273040462,-450.0,0.00019736,2]
[359712403,1746273040472,-450.0,0.00019736,2]
[359712404,1746273040481,-450.0,0.00019736,2]
[359712405,1746273040490,-450.0,0.00019736,2]
[359712406,1746273040499,-516.27,0.00019736,2]
[359712407,1746273040508,-4911.3,0.00019736,2]
[359712408,1746273040517,-450.0,0.00019736,2]
[359712409,1746273040527,-836.35,0.00019736,2]
[359712410,1746273040536,-836.35,0.00019736,2]
[359712411,1746273040545,-450.0,0.00019736,2]
[359712412,1746273040554,-450.0,0.00019736,2]
[359712413,1746273040563,-450.0,0.00019736,2]
[359712414,1746273040573,-588.70547733,0.00019736,2]
[359712415,1746273040582,-450.0,0.00019736,2]
[359712416,1746273040591,-450.0,0.00019736,2]
[359712417,1746273040600,-1850.38,0.00019736,2]
[359712418,1746273040609,-541.11,0.00019736,2]
[359712419,1746273040618,-450.0,0.00019736,2]
[359712420,1746273040627,-450.0,0.00019736,2]
[359712421,1746273040636,-450.0,0.00019736,2]
[359712422,1746273040645,-450.0,0.00019736,2]
[359712423,1746273040654,-450.0,0.00019736,2]
[359712424,1746273040663,-450.0,0.00019736,2]
[359712425,1746273040672,-450.0,0.00019736,2]
[359712426,1746273040681,-368.23329625,0.00019736,2]
[359712427,1746273040690,-5850.45,0.00019736,2]
[359712428,1746273040698,-450.0,0.00019736,2]
[359712429,1746273040707,-551.6356764,0.00019736,2]
[359712430,1746273040716,-500.0,0.00019736,2]
[359712431,1746273040725,-450.0,0.00019736,2]
[359712432,1746273040734,-500.0,0.00019736,2]
[359712433,1746273040744,-450.0,0.00019736,2]
[359712434,1746273040752,-450.0,0.00019736,2]
[359712435,1746273040762,-450.0,0.00019736,2]
[359712436,1746273040771,-464.66,0.00019736,2]
[359712437,1746273040780,-450.0,0.00019736,2]
[359712438,1746273040789,-5306.39,0.00019736,2]
[359712439,1746273040798,-754.18,0.00019736,2]
[359712440,1746273040807,-450.0,0.00019736,2]
[359712441,1746273040816,-450.0,0.00019736,2]
[359712442,1746273040825,-450.0,0.00019736,2]
[359712443,1746273040834,-450.0,0.00019736,2]
[359712444,1746273040844,-450.0,0.00019736,2]
[359712445,1746273040853,-450.0,0.00019736,2]
[359712446,1746273040862,-480.3,0.00019736,2]
[359712447,1746273041090,-450.0,0.00019736,2]
[359712448,1746273041100,-450.0,0.00019736,2]
[359712449,1746273041109,-450.0,0.00019736,2]
[359712450,1746273041118,-450.0,0.00019736,2]
[359712451,1746273041127,-1821.19,0.00019736,2]
[359712452,1746273041137,-450.0,0.00019736,2]
[359712453,1746273041146,-450.0,0.00019736,2]
[359712454,1746273041155,-450.0,0.00019736,2]
[359712455,1746273041165,-450.0,0.00019736,2]
[359712456,1746273041175,-450.0,0.00019736,2]
[359712457,1746273041185,-450.0,0.00019736,2]
[359712458,1746273041195,-450.0,0.00019736,2]
[359712459,1746273041205,-554.43,0.00019736,2]
[359712460,1746273041214,-450.0,0.00019736,2]
[359712461,1746273041223,-450.0,0.00019736,2]
[359712462,1746273041233,-450.0,0.00019736,2]
[359712463,1746273041243,-722.2,0.00019736,2]
[359712464,1746273041253,-450.0,0.00019736,2]
[359712465,1746273041262,-999.0,0.00019736,2]
[359712466,1746273041272,-450.0,0.00019736,2]
[359712467,1746273041281,-450.0,0.00019736,2]
[359712468,1746273041291,-450.0,0.00019736,2]
[359712469,1746273041300,-450.0,0.00019736,2]
[359712470,1746273041310,-5592.65,0.00019736,2]
[359712471,1746273041319,-745.26,0.00019736,2]
[359712472,1746273041329,-499.06,0.00019736,2]
[359712473,1746273041338,-450.0,0.00019736,2]
[359712474,1746273041347,-450.0,0.00019736,2]
[359712475,1746273041356,-450.0,0.00019736,2]
[359712476,1746273041366,-645.44,0.00019736,2]
[359712477,1746273041375,-1320.28,0.00019736,2]
[359712478,1746273041385,-450.0,0.00019736,2]
[359712479,1746273041397,-450.0,0.00019736,2]
[359712480,1746273041406,-450.0,0.00019736,2]
[359712481,1746273041415,-500.0,0.00019736,2]
[359712482,1746273041425,-450.0,0.00019736,2]
[359712483,1746273041434,-450.0,0.00019736,2]
[359712484,1746273041445,-450.0,0.00019736,2]
[359712485,1746273041454,-500.0,0.00019736,2]
[359712486,1746273041464,-450.0,0.00019736,2]
[359712487,1746273041475,-450.0,0.00019736,2]
[359712488,1746273041485,-5332.67,0.00019736,2]
[359712489,1746273041494,-450.0,0.00019736,2]
[359712490,1746273041504,-450.0,0.00019736,2]
[359712491,1746273041513,-450.0,0.00019736,2]
[359712492,1746273041522,-450.0,0.00019736,2]
[359712493,1746273041531,-450.0,0.00019736,2]
[359712494,1746273041540,-450.0,0.00019736,2]
[359712495,1746273041549,-450.0,0.00019736,2]
[359712496,1746273041559,-450.0,0.00019736,2]
[359712497,1746273041568,-450.0,0.00019736,2]
[359712498,1746273041578,-450.0,0.00019736,2]
[359712499,1746273041587,-450.0,0.00019736,2]
[359712500,1746273041596,-450.0,0.00019736,2]
[359712501,1746273041605,-24252.81,0.00019736,2]
[359712502,1746273041614,-611.45,0.00019736,2]
[359712503,1746273041624,-450.0,0.00019736,2]
[359712504,1746273041633,-450.0,0.00019736,2]
[359712505,1746273041642,-450.0,0.00019736,2]
[359712506,1746273041651,-450.0,0.00019736,2]
[359712507,1746273041660,-450.0,0.00019736,2]
[359712508,1746273041669,-450.0,0.00019736,2]
[359712509,1746273041678,-450.0,0.00019736,2]
[359712510,1746273041687,-450.0,0.00019736,2]
[359712511,1746273041696,-1634.14,0.00019736,2]
[359712512,1746273041705,-450.0,0.00019736,2]
[359712513,1746273041714,-450.0,0.00019736,2]
[359712514,1746273041723,-513.12,0.00019736,2]
[359712515,1746273041733,-450.0,0.00019736,2]
[359712516,1746273041742,-1042.33,0.00019736,2]
[359712517,1746273041751,-450.0,0.00019736,2]
[359712518,1746273041761,-450.0,0.00019736,2]
[359712519,1746273041770,-450.0,0.00019736,2]
[359712520,1746273041779,-450.0,0.00019736,2]
[359712521,1746273041789,-710.05,0.00019736,2]
[359712522,1746273041797,-1021.5,0.00019736,2]
[359712523,1746273041806,-450.0,0.00019736,2]
[359712524,1746273041815,-450.0,0.00019736,2]
[359712525,1746273041824,-14833.83,0.00019736,2]
[359712526,1746273041833,-555.22,0.00019736,2]
[359712527,1746273041842,-450.0,0.00019736,2]
[359712528,1746273041851,-450.0,0.00019736,2]
[359712529,1746273041860,-450.0,0.00019736,2]
[359712530,1746273041869,-450.0,0.00019736,2]
[359712531,1746273041878,-450.0,0.00019736,2]
[359712532,1746273041888,-1251.12,0.00019736,2]
[359712533,1746273041897,-370.09115084,0.00019736,2]
[359712534,1746273041906,-450.0,0.00019736,2]
[359712535,1746273041915,-450.0,0.00019736,2]
[359712536,1746273041924,-4366.49,0.00019736,2]
[359712537,1746273041933,-789.68,0.00019736,2]
[359712538,1746273041943,-450.0,0.00019736,2]
[359712539,1746273041952,-450.0,0.00019736,2]
[359712540,1746273041961,-450.0,0.00019736,2]
[359712541,1746273041970,-446.35235035,0.00019736,2]
[359712542,1746273041979,-450.0,0.00019736,2]
[359712543,1746273041988,-450.0,0.00019736,2]
[359712544,1746273041998,-450.0,0.00019736,2]
[359712545,1746273042007,-927.71,0.00019736,2]